Cogmind - Beta 11.1 @@@ ROGUE MODE // 2022.04.29 @ 17:31:25 Player: Olga Result: Destroyed by S-27 Virus with Autogun Performance ------------- Evolutions (3) 1500 Regions Visited (10) 2000 Robots Destroyed (6) 30 Value Destroyed (99) 99 Prototype IDs (11) 220 Alien Tech Used (0) 0 Bonus (350) 350 TOTAL SCORE: 4199 Bonus ------- Follower Combat Kills 50 Met Data Miner 300 Cogmind --------- Core Integrity 0/700 Matter 270/300 Energy 72/100 System Corruption 1% Temperature Cool (0) Movement Core (50) Location -6/Proximity Caves Parts ------- > --- POWER (1) -------- (None) > --- PROPULSION (4) --- (None) > --- UTILITY (6) ------ Structural Scanner Advanced Visual Processing Unit Signal Interpreter Advanced Terrain Scan Processor Hacking Suite System Restoration Module > --- WEAPON (2) ------- (None) > --- INVENTORY (5) ---- Cooled Deuterium Engine Fission Core Powered Armor Makeshift Hacking Suite Rocket Launcher Peak State ------------ > --- POWER ------------ Cooled Deuterium Engine > --- PROPULSION ------- Makeshift Hover Unit > --- UTILITY ---------- Advanced Visual Processing Unit Improved Sensor Array Signal Interpreter Advanced Terrain Scan Processor Hacking Suite > --- WEAPON ----------- Katana > --- INVENTORY -------- Structural Scanner Powered Armor Makeshift Hacking Suite Rocket Launcher [Rating: 28] Favorites ----------- Power Light Ion Engine Engine Light Ion Engine Power Core Fission Core Propulsion Flight Unit Leg Aluminum Leg Wheel Wheel Hover Unit Makeshift Hover Unit Flight Unit Flight Unit Utility Propulsion Shielding Device Improved Sensor Array Storage High-capacity Storage Unit Processor Signal Interpreter Hackware Hacking Suite Protection Propulsion Shielding Weapon Assault Rifle Ballistic Gun Assault Rifle Slashing Weapon Katana Build | -11 -10 -10 -10 -9 -8 -7 -7 -7 -7 -6 ------- Run | Scr Mat Min Exi Min Mat Fac Low Low Dat Pro Slots Evolved 6 | . . . . . 4 2 . . . . Power . | . . . . . . . . . . . Propulsion 2 | . . . . . 2 . . . . . Utility 4 | . . . . . 2 2 . . . . Weapon . | . . . . . . . . . . . Parts Attached 30 | . 9 1 . . 6 4 3 . 1 6 Power 6 | . . 1 . . 1 . 1 . 1 2 Engine 5 | . . 1 . . 1 . 1 . 1 1 Core 1 | . . . . . . . . . . 1 Reactor . | . . . . . . . . . . . Propulsion 7 | . 4 . . . 2 . . . . 1 Treads . | . . . . . . . . . . . Leg . | . . . . . . . . . . . Wheel 2 | . 2 . . . . . . . . . Hover 1 | . . . . . . . . . . 1 Flight 4 | . 2 . . . 2 . . . . . Utility 13 | . 4 . . . 2 4 1 . . 2 Device 4 | . . . . . . 2 . . . 2 Storage 2 | . 2 . . . . . . . . . Processor 3 | . 1 . . . . 1 1 . . . Hackware 1 | . . . . . . 1 . . . . Protection 3 | . 1 . . . 2 . . . . . Artifact . | . . . . . . . . . . . Weapon 4 | . 1 . . . 1 . 1 . . 1 Energy Gun . | . . . . . . . . . . . Energy Cannon . | . . . . . . . . . . . Ballistic Gun 1 | . 1 . . . . . . . . . Ballistic Cannon . | . . . . . . . . . . . Launcher . | . . . . . . . . . . . Special Weapon . | . . . . . . . . . . . Impact Weapon . | . . . . . . . . . . . Slashing Weapon 3 | . . . . . 1 . 1 . . 1 Piercing Weapon . | . . . . . . . . . . . Special Melee Weapon . | . . . . . . . . . . . Unidentified Prototypes 1 | . . . . . . . . . 1 . Parts Lost 8 | . . . . . 1 . 1 3 . 3 Power 1 | . . . . . . . . 1 . . Propulsion 5 | . . . . . 1 . 1 2 . 1 Utility 1 | . . . . . . . . . . 1 Weapon 1 | . . . . . . . . . . 1 Highest Loss Streak 3 | . . . . . 1 . 1 3 . 3 To Critical Strikes . | . . . . . . . . . . . Average Slot Usage (%) 85 | . 99 100 100 100 95 75 77 66 46 45 Engine 10 | . 14 14 14 14 9 7 7 6 . 3 Wheel 6 | . 23 . . . . . . . . . Flight 15 | . 3 28 28 28 34 23 20 13 . . Device 4 | . . . . . . 14 15 15 15 5 Storage 3 | . 12 . . . . . . . . . Processor 12 | . 1 14 14 14 9 14 16 23 23 23 Hackware 2 | . . . . . . 7 7 7 7 7 Protection 10 | . 13 14 14 14 25 7 5 . . . Ballistic Gun 16 | . 28 28 28 28 9 . . . . . Naked Turns . | . . . . . . . . . . . Heaviest Build 48 | 12 48 7 7 7 16 12 10 7 2 12 Greatest Support 20 | 20 20 8 8 8 17 13 13 9 3 12 Greatest Overweight (x) 2 | . 2 . . . . . . . . . Average Overweight (x) . | . 1 . . . . . . . . . Largest Inventory Capacity 20 | . 20 5 5 5 5 5 5 5 5 5 Average Capacity 8 | . 15 5 5 5 5 5 5 5 5 5 Most Carried 15 | . 15 5 5 5 5 5 5 5 5 5 Average Carried 6 | . 9 5 5 5 4 4 4 5 4 4 Final Capacity 8 | 8 5 5 5 5 5 5 5 5 5 5 Final Carried 6 | 6 5 5 5 5 5 5 5 5 5 5 Class Distribution -------------------- 61% | Mutant 34% | Scout 4% | Sprinter Dominant Class ---------------- Mutant | -10/Materials Mutant | -10/Mines Mutant | -10/Exiles Mutant | -9/Mines Sprinter | -8/Materials Scout | -7/Factory Scout | -7/Lower Caves Scout | -7/Lower Caves Scout | -7/Data Miner Mutant | -6/Proximity Caves Resources | -11 -10 -10 -10 -9 -8 -7 -7 -7 -7 -6 ----------- Run | Scr Mat Min Exi Min Mat Fac Low Low Dat Pro Matter Collected 528 | 200 101 22 . 24 81 . 75 . . 25 Remotely . | . . . . . . . . . . . Salvage Created 207 | . 120 . . . . . 87 . . . Parts 9 | . 8 . . . . . 1 . . . Haulers Intercepted . | . . . . . . . . . . . Recyclers Shooed . | . . . . . . . . . . . Parts Field Recycled . | . . . . . . . . . . . Retrieved Matter . | . . . . . . . . . . . Parts Self-Destructed 3 | . . . . . . . 1 . . 2 Prevented 3 | . . . . . . . . . . 3 Kills | -11 -10 -10 -10 -9 -8 -7 -7 -7 -7 -6 ------- Run | Scr Mat Min Exi Min Mat Fac Low Low Dat Pro Combat Hostiles Destroyed 5 | . 5 . . . . . . . . . Guns 5 | . 5 . . . . . . . . . Classes Destroyed 3 | . 3 . . . . . . . . . Worker 1 | . 1 . . . . . . . . . Swarmer 3 | . 3 . . . . . . . . . Grunt 2 | . 2 . . . . . . . . . Best Kill Streak 3 | . 3 . . . . . . . . . Combat Bots Only 2 | . 2 . . . . . . . . . Max Kills in Single Turn 1 | . 1 . . . . . . . . . Gunslinging . | . . . . . . . . . . . Exploded . | . . . . . . . . . . . Melee . | . . . . . . . . . . . Uniques/NPCs Destroyed . | . . . . . . . . . . . Combat | -11 -10 -10 -10 -9 -8 -7 -7 -7 -7 -6 -------- Run | Scr Mat Min Exi Min Mat Fac Low Low Dat Pro Damage Taken 1462 | . 197 . . 12 281 . 114 223 . 635 Core 813 | . 86 . . . 15 . 94 117 . 501 Absorbed by Shields . | . . . . . . . . . . . Redirected to Shielding 39 | . 10 . . . 19 . 10 . . . Core Remaining (%) 87 | 100 . . . 65 97 . . . . . Volleys Fired 13 | . 13 . . . . . . . . . Largest 2 | . 2 . . . . . . . . . Hottest 40 | . 40 . . . . . . . . . Shots Fired 26 | . 26 . . . . . . . . . Gun 26 | . 26 . . . . . . . . . Cannon . | . . . . . . . . . . . Launcher . | . . . . . . . . . . . Special . | . . . . . . . . . . . Kinetic 26 | . 26 . . . . . . . . . Thermal . | . . . . . . . . . . . Explosive . | . . . . . . . . . . . Electromagnetic . | . . . . . . . . . . . Robot Hit Streak 4 | . 4 . . . . . . . . . Robot Miss Streak 1 | . 1 . . . . . . . . . Penetration Max . | . . . . . . . . . . . Secondary Targets 1 | . 1 . . . . . . . . . Max Gunslinging Chain 1 | . 1 . . . . . . . . . Shots Hit Robots 19 | . 15 . . . 1 . 3 . . . Core Hits 8 | . 6 . . . . . 2 . . . Critical Kills . | . . . . . . . . . . . Critical Parts Destroyed . | . . . . . . . . . . . Critical Strikes . | . . . . . . . . . . . Melee Attacks 5 | . . . . . 1 . 3 . . 1 Impact . | . . . . . . . . . . . Slashing 5 | . . . . . 1 . 3 . . 1 Piercing . | . . . . . . . . . . . Sneak Attacks . | . . . . . . . . . . . Combat Hostiles . | . . . . . . . . . . . Follow-up Attacks . | . . . . . . . . . . . Damage Inflicted 451 | . 250 . . . 41 . 160 . . . Guns 250 | . 250 . . . . . . . . . Cannons . | . . . . . . . . . . . Explosions . | . . . . . . . . . . . Melee 201 | . . . . . 41 . 160 . . . Ramming . | . . . . . . . . . . . Kinetic 250 | . 250 . . . . . . . . . Thermal . | . . . . . . . . . . . Explosive . | . . . . . . . . . . . Electromagnetic . | . . . . . . . . . . . Impact . | . . . . . . . . . . . Slashing 201 | . . . . . 41 . 160 . . . Piercing . | . . . . . . . . . . . Highest Corruption 1 | . 1 1 1 1 . . . 1 1 1 Average Corruption 1 | . 1 1 1 1 . . . 1 1 1 Corruption Purged . | . . . . . . . . . . . Corruption Blocked . | . . . . . . . . . . . Effects 4 | . . . . 1 . . . . 1 2 Message Errors 1 | . . . . . . . . . . 1 Energy Discharges 2 | . . . . 1 . . . . 1 . Data Loss (minor) 1 | . . . . . . . . . . 1 Overload Shots . | . . . . . . . . . . . Overflow Damage 7 | . . . . . 6 . 1 . . . Projectiles . | . . . . . . . . . . . Explosions . | . . . . . . . . . . . Melee 7 | . . . . . 6 . 1 . . . Knockbacks . | . . . . . . . . . . . Impact . | . . . . . . . . . . . Kinetic . | . . . . . . . . . . . Secondary . | . . . . . . . . . . . Self-Inflicted Damage . | . . . . . . . . . . . Shots . | . . . . . . . . . . . Rammed . | . . . . . . . . . . . Targets Rammed . | . . . . . . . . . . . Kicked . | . . . . . . . . . . . Crushed . | . . . . . . . . . . . Highest Temperature 4 | . . . . . 4 . . . . . Average Temperature 3 | . . . . . 3 . . . . . Received Heat Transfer 192 | . 12 . . 6 18 . 12 60 . 84 Siege Activations . | . . . . . . . . . . . Robots Corrupted . | . . . . . . . . . . . Combat Hostiles . | . . . . . . . . . . . Parts Fried . | . . . . . . . . . . . Impact Corruptions . | . . . . . . . . . . . Robots Melted . | . . . . . . . . . . . Combat Hostiles . | . . . . . . . . . . . Parts Melted . | . . . . . . . . . . . Heat Transferred . | . . . . . . . . . . . Parts Sabotaged . | . . . . . . . . . . . Parts Stolen . | . . . . . . . . . . . Parts Stripped . | . . . . . . . . . . . Power Chain Reactions . | . . . . . . . . . . . Missiles Intercepted . | . . . . . . . . . . . Alert | -11 -10 -10 -10 -9 -8 -7 -7 -7 -7 -6 ------- Run | Scr Mat Min Exi Min Mat Fac Low Low Dat Pro Peak Influence 227 | . 195 75 . 56 227 102 . . . . Initial 102 | . . 75 . . 21 102 . . . . Average 86 | . 96 75 . 34 110 102 . . . . Maximum Alert Level 1 | . . . . . 1 . . . . . Low Security (%) 99 | . 100 100 . 100 91 100 . . . . Level 1 . | . . . . . 8 . . . . . Level 2 . | . . . . . . . . . . . Level 3 . | . . . . . . . . . . . Level 4 . | . . . . . . . . . . . Level 5 . | . . . . . . . . . . . High Security . | . . . . . . . . . . . Max Security . | . . . . . . . . . . . Squads Dispatched 4 | . . . . . 1 1 . . . 2 Investigation 1 | . . . . . . 1 . . . . Extermination . | . . . . . . . . . . . Reinforcement 1 | . . . . . 1 . . . . . Assault 2 | . . . . . . . . . . 2 Garrison . | . . . . . . . . . . . Intercept . | . . . . . . . . . . . Searches Triggered . | . . . . . . . . . . . Construction Impeded . | . . . . . . . . . . . Haulers Reinforced . | . . . . . . . . . . . Active Scanning Responses . | . . . . . . . . . . . Cargo Convoy Interrupts . | . . . . . . . . . . . Stealth | -11 -10 -10 -10 -9 -8 -7 -7 -7 -7 -6 --------- Run | Scr Mat Min Exi Min Mat Fac Low Low Dat Pro Distress Signals 3 | . 1 . . . 2 . . . . . Communications Jammed . | . . . . . . . . . . . Distress Signals . | . . . . . . . . . . . Times Spotted 64 | . 8 . . 6 23 . 1 9 . 17 Peak Tracking Total 16 | . 3 . . 3 16 . 1 6 . 14 Tactical Retreats 6 | . . . . . 2 . . 2 . 2 Traps | -11 -10 -10 -10 -9 -8 -7 -7 -7 -7 -6 ------- Run | Scr Mat Min Exi Min Mat Fac Low Low Dat Pro Traps Triggered 1 | . 1 . . . . . . . . . Indirectly . | . . . . . . . . . . . Trap Hack Attempts . | . . . . . . . . . . . Triggered . | . . . . . . . . . . . Disarmed . | . . . . . . . . . . . Reprogrammed . | . . . . . . . . . . . Reused . | . . . . . . . . . . . Traps Extracted . | . . . . . . . . . . . Installed . | . . . . . . . . . . . Triggered 1 | . . . . . . . . . . 1 Machines | -11 -10 -10 -10 -9 -8 -7 -7 -7 -7 -6 ---------- Run | Scr Mat Min Exi Min Mat Fac Low Low Dat Pro Machines Disabled . | . . . . . . . . . . . Max in Single Turn . | . . . . . . . . . . . Garrison Access 1 | . . . . . . 1 . . . . Machines Sabotaged . | . . . . . . . . . . . Garrisons Compromised . | . . . . . . . . . . . Overloaded Fab Kills . | . . . . . . . . . . . Hacking | -11 -10 -10 -10 -9 -8 -7 -7 -7 -7 -6 --------- Run | Scr Mat Min Exi Min Mat Fac Low Low Dat Pro Machines Accessed 14 | . 4 . . 1 3 2 . . 4 . Terminals 8 | . 4 . . . 3 1 . . . . Fabricators . | . . . . . . . . . . . Repair Stations . | . . . . . . . . . . . Recycling Units . | . . . . . . . . . . . Scanalyzers . | . . . . . . . . . . . Garrison Access 1 | . . . . . . 1 . . . . Total Hacks 47 | . 8 . . 1 4 5 . . 29 . Successful 40 | . 5 . . 1 3 2 . . 29 . Failed 7 | . 3 . . . 1 3 . . . . Catastrophic 1 | . . . . . . 1 . . . . Database Lockouts . | . . . . . . . . . . . Manual 12 | . 7 . . . 2 3 . . . . Terminals 15 | . 8 . . . 4 3 . . . . Fabricators . | . . . . . . . . . . . Repair Stations . | . . . . . . . . . . . Recycling Units . | . . . . . . . . . . . Scanalyzers . | . . . . . . . . . . . Garrison Access 2 | . . . . . . 2 . . . . Terminal Hacks 38 | . 5 . . 1 2 1 . . 29 . Record 11 | . . . . . . . . . 11 . Part Schematic 11 | . . . . . . . . . 11 . Robot Schematic 4 | . . . . . . . . . 4 . Prototype ID Bank 3 | . . . . . . . . . 3 . Open Door 1 | . . . . 1 . . . . . . Branch Access Points 2 | . 1 . . . . 1 . . . . Terminal Index 1 | . 1 . . . . . . . . . Locate Traps 1 | . 1 . . . . . . . . . Hauler Manifests 1 | . 1 . . . . . . . . . Zone Layout 3 | . 1 . . . 2 . . . . . Fabricator Hacks . | . . . . . . . . . . . Repair Station Hacks . | . . . . . . . . . . . Recycling Unit Hacks . | . . . . . . . . . . . Scanalyzer . | . . . . . . . . . . . Garrison Access Hacks 1 | . . . . . . 1 . . . . Seal Access 1 | . . . . . . 1 . . . . Unauthorized Hacks 1 | . . . . . 1 . . . . . Terminals 1 | . . . . . 1 . . . . . Assimilate 1 | . . . . . 1 . . . . . Fabricators . | . . . . . . . . . . . Repair Stations . | . . . . . . . . . . . Recycling Units . | . . . . . . . . . . . Scanalyzers . | . . . . . . . . . . . Garrison Access . | . . . . . . . . . . . Data Cores Recovered . | . . . . . . . . . . . Used . | . . . . . . . . . . . Hacking Detections 4 | . 2 . . . 1 1 . . . . Full Trace Events 1 | . . . . . . 1 . . . . Feedback Events . | . . . . . . . . . . . Feedback Blocked . | . . . . . . . . . . . Robot Schematics Acquired 4 | . . . . . . . . . 4 . Robots Built . | . . . . . . . . . . . Authchips . | . . . . . . . . . . . Time . | . . . . . . . . . . . Total Robot Build Rating . | . . . . . . . . . . . Part Schematics Acquired 11 | . . . . . . . . . 11 . Parts Built . | . . . . . . . . . . . Authchips . | . . . . . . . . . . . Time . | . . . . . . . . . . . Total Part Build Rating . | . . . . . . . . . . . Parts Repaired . | . . . . . . . . . . . Time . | . . . . . . . . . . . Parts Recycled . | . . . . . . . . . . . Recycled Matter . | . . . . . . . . . . . Retrieved Matter . | . . . . . . . . . . . Retrieved Components . | . . . . . . . . . . . Parts Scanalyzed . | . . . . . . . . . . . Part Schematics Acquired . | . . . . . . . . . . . Parts Damaged . | . . . . . . . . . . . Bothacking | -11 -10 -10 -10 -9 -8 -7 -7 -7 -7 -6 ------------ Run | Scr Mat Min Exi Min Mat Fac Low Low Dat Pro Used RIF Installer . | . . . . . . . . . . . Robots Hacked . | . . . . . . . . . . . Non-combat . | . . . . . . . . . . . Combat . | . . . . . . . . . . . Robot Hacks Applied . | . . . . . . . . . . . Relay Couplers Released . | . . . . . . . . . . . Fabnet Peak Effective % . | . . . . . . . . . . . Robots Rewired . | . . . . . . . . . . . Allies Hacked . | . . . . . . . . . . . Hacks Repelled . | . . . . . . . . . . . Allies | -11 -10 -10 -10 -9 -8 -7 -7 -7 -7 -6 -------- Run | Scr Mat Min Exi Min Mat Fac Low Low Dat Pro Total Allies 5 | . . 3 . . 1 . . . . 1 Largest Group 3 | . . 3 3 3 1 . . . . 1 Highest-Rated Group 96 | . . 40 40 40 10 . . . . 96 Highest-Rated Ally 96 | . . 16 16 16 10 . . . . 96 Total Orders . | . . . . . . . . . . . Ally Attacks 33 | . . . . 28 . . . . . 5 Total Damage 300 | . . . . 300 . . . . . . Kills 3 | . . . . 3 . . . . . . Allies Corrupted . | . . . . . . . . . . . Allies Melted . | . . . . . . . . . . . Intel | -11 -10 -10 -10 -9 -8 -7 -7 -7 -7 -6 ------- Run | Scr Mat Min Exi Min Mat Fac Low Low Dat Pro Robot Analysis Total . | . . . . . . . . . . . Derelict Logs Recovered 5 | . . . . 2 . . 1 1 . 1 Drone Launches . | . . . . . . . . . . . Drone Recoveries . | . . . . . . . . . . . Exploration | -11 -10 -10 -10 -9 -8 -7 -7 -7 -7 -6 ------------- Run | Scr Mat Min Exi Min Mat Fac Low Low Dat Pro Turns Passed 1385 | . 390 95 146 135 98 111 102 102 43 163 Spaces Moved 2559 | 1 361 189 176 340 269 327 275 292 84 245 Core 243 | . . . . . . . . 9 84 150 Treads . | . . . . . . . . . . . Legs 8 | 1 7 . . . . . . . . . Wheels 257 | . 257 . . . . . . . . . Hover 95 | . . . . . . . . . . 95 Flight 1956 | . 97 189 176 340 269 327 275 283 . . Fastest Speed 29 | 120 37 37 37 37 29 32 32 34 50 50 Average Speed 43 | 120 84 37 37 37 29 32 32 34 50 57 Slowest Speed 120 | 120 120 37 37 37 34 32 34 50 50 70 Overloaded Moves . | . . . . . . . . . . . Propulsion Burnouts . | . . . . . . . . . . . Robots Hopped 15 | . 1 4 . 4 2 4 . . . . Cave-ins Triggered . | . . . . . . . . . . . Exploration Rate (%) 45 | 2 44 31 59 80 36 11 61 59 74 42 Regions Visited 10 Branch Regions 7 Pre-discovered Areas 3 | . . . . . . . . 1 1 1 Known Exits Taken 9 | . 1 1 1 1 1 1 1 1 1 . Unknown Exits Taken 1 | 1 . . . . . . . . . . Scrap Searched 10 | . . 1 . 1 . . 3 3 . 2 Spaces Dug . | . . . . . . . . . . . Terrain Destroyed . | . . . . . . . . . . . Melee . | . . . . . . . . . . . Projectile . | . . . . . . . . . . . AOE . | . . . . . . . . . . . Terrain Rammed . | . . . . . . . . . . . Walls Destroyed . | . . . . . . . . . . . Machines Disabled . | . . . . . . . . . . . Actions | -11 -10 -10 -10 -9 -8 -7 -7 -7 -7 -6 --------- Run | Scr Mat Min Exi Min Mat Fac Low Low Dat Pro Total 2765 | . 417 209 256 344 285 328 283 293 85 265 Wait 139 | . 17 22 81 9 . . . . . 10 Move 2520 | . 358 180 175 332 264 318 274 291 83 245 Hop 14 | . 1 4 . 3 2 4 . . . . Pick Up 21 | . 13 1 . . 5 1 . 1 . . Fast Attach 9 | . 1 . . . 3 1 1 . . 3 Attach 10 | . 1 . . . 2 2 1 . 1 3 Detach 6 | . . . . . . 1 1 . 1 3 Swap 11 | . 7 1 . . 1 1 1 . . . Drop 17 | . 6 1 . . 7 . 2 1 . . Fire 13 | . 13 . . . . . . . . . Melee 5 | . . . . . 1 . 3 . . 1 Ram . | . . . . . . . . . . . Kick . | . . . . . . . . . . . Crush . | . . . . . . . . . . . Escape Stasis . | . . . . . . . . . . . Rewire . | . . . . . . . . . . . Trap . | . . . . . . . . . . . Miscellaneous . | . . . . . . . . . . . Route ------- -11/Scrapyard -10/Materials (discovered 2 exits: *Min x2) -10/Mines (discovered 3 exits: *Mat x2 / *Exi) -10/Exiles (discovered 2 exits: *Min x2) -9/Mines -8/Materials (discovered 3 exits: *Fac x3) -7/Factory (discovered 2 exits: *Low x2) -7/Lower Caves -7/Lower Caves (discovered 2 exits: [*Fac] / *Dat) -7/Data Miner -6/Proximity Caves History --------- Turn | Location | Event 1 | -11/Scrapyard | Discovered new exit (range 0) 1 | -11/Scrapyard | Entered Materials 304 | -10/Materials | Build established: Mutant 369 | -10/Materials | Identified exit to Mines 391 | -10/Materials | Entered Mines 393 | -10/Mines | Discovered new exit (range 7) 395 | -10/Mines | Identified exit to Materials 399 | -10/Mines | Received a Rocket Launcher from a helpful Derelict 408 | -10/Mines | Discovered exit to Materials (range 15) 412 | -10/Mines | Met a Derelict bent on vengeance 460 | -10/Mines | Assisted by bots powering up and referring to "LRC-V3" 468 | -10/Mines | Deemed a non-threat by the Exiles lab entrance 468 | -10/Mines | Discovered new exit (range 5) 469 | -10/Mines | Identified exit to Exiles 486 | -10/Mines | Entered Exiles 486 | -10/Exiles | Found Exiles lab abandoned 486 | -10/Exiles | Accompanied by 3 allies 492 | -10/Exiles | Discovered new exit (range 15) 547 | -10/Exiles | Discovered new exit (range 14) 551 | -10/Exiles | Identified exit to Mines 632 | -10/Exiles | Entered Mines 632 | -9/Mines | Accompanied by 3 allies 705 | -9/Mines | Learned Materials non-interactive machine intel 706 | -9/Mines | Met a Derelict who couldn't figure out how to use a Trap Extractor 761 | -9/Mines | Learned location of 2 exits from Materials 763 | -9/Mines | Discovered new exit (range 10) 767 | -9/Mines | Identified exit to Materials 767 | -9/Mines | Entered Materials 767 | -8/Materials | Evolved 4 slots: Propulsion x2, Utility x2 768 | -8/Materials | Identified exit to Factory 769 | -8/Materials | Loaded intel: 49 non-interactive machine locations 844 | -8/Materials | Found Powered Armor 861 | -8/Materials | Discovered exit to Factory (range 16) 865 | -8/Materials | Entered Factory 865 | -7/Factory | Evolved 2 slots: Utility x2 924 | -7/Factory | Identified exit to Lower Caves 976 | -7/Factory | Entered Lower Caves 1022 | -7/Lower Caves | Learned 4 Factory zone layouts 1047 | -7/Lower Caves | Spotted B-75 Beast 1069 | -7/Lower Caves | Discovered new exit (range 12) 1078 | -7/Lower Caves | Identified exit to Lower Caves 1078 | -7/Lower Caves | Entered another Lower Caves area 1078 | -7/Lower Caves | Discovered new exit (range 9) 1079 | -7/Lower Caves | Encountered a Warlord checkpoint 1133 | -7/Lower Caves | Build established: Scout 1174 | -7/Lower Caves | Discovered new exit (range 17) 1176 | -7/Lower Caves | Attracted the attention of an 0b10 checkpoint 1180 | -7/Lower Caves | Identified exit to Data Miner 1180 | -7/Lower Caves | Entered Data Miner 1180 | -7/Data Miner | Discovered new exit (range 6) 1189 | -7/Data Miner | Met Data Miner 1200 | -7/Data Miner | Learned location of Section 7 (-3) 1200 | -7/Data Miner | Acquired the access code to Warlord's prototype stash 1207 | -7/Data Miner | Lost 3 parts (1p2n) 1210 | -7/Data Miner | Received God Mode back door access code from Data Miner 1223 | -7/Data Miner | Identified exit to Proximity Caves 1223 | -7/Data Miner | Entered Proximity Caves 1224 | -6/Proximity Caves | Derelict sapper outpost attacked 1304 | -6/Proximity Caves | Escorted by Enhanced Grunt 1324 | -6/Proximity Caves | Core integrity fell below 50% 1349 | -6/Proximity Caves | Core integrity fell below 20% 1381 | -6/Proximity Caves | Lost 3 parts (1n1u1w) 1386 | -6/Proximity Caves | Destroyed by S-27 Virus with Autogun Last Messages --------------- 01318_ Enhanced Grunt destroyed. 01319_ Mak. Hover Unit destroyed. 01320_ Imp. Sensor Array destroyed. 01322_ Critical hit (Burn: +37). 01323_ System corrupted: Component data lost. 01324_ G-67 Veteran suffers critical hit (Burn). 01329_ Acquired derelict log, extracted data. World map updated: -7/Factory. 01338_ S-27 Virus destroyed. 01350_ Katana destroyed. 01378_ Searching scrap... 01378_ Found Fission Core. 01378_ Found 31 Matter. 01378_ Found System Restoration Module. 01378_ Found Imp. Reaction Control System. 01378_ Found 30 Matter. 01379_ Acquired 7 matter. 01379_ 46-6ZR(S) destroyed. 01380_ Acquired System Restoration Module. 01382_ Acquired Fission Core. Map ----- +----------------------------------------------------+ | ?????????????????????????????????????????????????? | | ?????????????????????????????????????????????????? | | ?????????????????????????????????????????????????? | | ?????????????????????????????????????????????????? | | ?????????????????????????????????????????????????? | | ?????????????????????????????????????????????????? | | ?????????????????????????????????????????????????? | | ?????????????????????????????????????????????????? | | ?????????????????????????????????????????????????? | | ?????????????????????????????????????????????????? | | ?????????????????????####????????????????????????? | | ?????????????????????######??###????????#####????? | | ????????????????????## ###?## ##?####?# #????? | | ???????????????????## #### ####### #????? | | ??????????????????## #????? | | ??????????????????# #####????? | | ??????????????????# ######% ##????????? | | ??????????????????## ## ## #####????????? | | ???????????????????##?## #### ######???? | | #????????????????????### #### ##? #??## | | #????????????????????### ##?## ## #### | | #????????????????????##% ##??# ## | | #????????????????????##%! ##?## | | #????????????????????#### ##### ### | | #???????????????????? ## ### ### ### | | #??###???????????????? ##@s## ###?### ## | | ???# ???????????????? ## s ##?# ## | | ???# ?##???????????? ## s ### | | ?### ? ##???????? ## | | ## ## ##??????? ### | | # ##?????? ###### | | # ??????? ###### | | ? ???????? # ##???## #### | | ?# #??????????#### ##????### ###?# | | ?# #?????????????## ##??????### ##??# | | ?# #??????????##### ##????????## #?# | | ?# #??????##### ## ##?????????# | | ## #?####?## ##?????????## | | ### ### ##??????????##### # | | ## ## ##?????????????####### | | ##??????????????????? | | ## ##### #??????????????????? | | ###### #######???## #??????###??####???? | | ?????## #?????????## #??##### #### ##### | | ??????## #?????????# #??#!!= | | ???????### ???????# #??#*%! ##### | | ?????????### ?????# #??#!! #???? | | ???????????? #??## #??# # #??# | | ???????????? #######??# #### #### " | | ????????????##????????# #??## "%" | +----------------------------------------------------+ Best States ------------- Heat Dissipation 34 Energy Generation 18 Energy Capacity 310 Matter Stores 300 Matter Capacity 300 Sight Range 20 Robot Scan Range 15 Terrain Scan Density 210 Armor Coverage 150 Propulsion Shielding 33 Evasion (%) 64 Offensive Hacking 10 Item Schematics ----------------- Combat Drone Bay | -7/Data Miner | Free Lgt. Regenerative Plating | -7/Data Miner | Free Thermal Defense Suite | -7/Data Miner | Free Antimatter Cannon | -7/Data Miner | Free Cld. Aerolev Unit | -7/Data Miner | Free Adv. System Restoration Module | -7/Data Miner | Free Enh. Gauss Cannon | -7/Data Miner | Free Field Propulsion Drive | -7/Data Miner | Free Imp. Concussive RPG | -7/Data Miner | Free Imp. Recalibrator | -7/Data Miner | Free Graphene Brace | -7/Data Miner | Free Robot Schematics ------------------ M-14 Sweeper | -7/Data Miner | Free O-24 Administrator | -7/Data Miner | Free R-10 Processor | -7/Data Miner | Free B-48 Gladiator | -7/Data Miner | Free Fabricated ------------ Nothing Alien Tech Used ----------------- None Achievements -------------- None Challenges ------------ None Game ------ Seed MicrowarpCannonNanoactuators Manual? 0 Play Time 00:26:14 Cumulative 117.8 hours Start 2022.04.29 @ 17:01:35 End 2022.04.29 @ 17:31:25 Sessions 1 Manual Loads 0 Difficulty Rogue Special Mode None Game No. 147 Rogue 146 Adventurer 0 Explorer 1 Win Type - Total 2 Types 2/0/0/0/0/0/0/0/0 Lore% 57 Gallery% 56 Achievement% 46 Wizard Run 0 Options --------- ASCII 1 Keyboard 0 Movement Vi Keybinds 0 Fullscreen 1 Font 18/SmallcapsGlow Map View 76x50 Tactical HUD 1 Map Filters NONE Filters NONE Steam 1 RUN: 3f596102-9d19-41e7-b16b-eae97a5228c4